Workbook

Sheet 0.5. Importera data fr. verktyg
A1: Samlad effektbedömning v 1.17
AP7: Skadade
A8: Hämta kalkylresultatet från SK46, denna mall läses sedan in i SEB-IT | S8: Beräkning av effekter 2040 och nuvärde | AP8: Döda | AQ8: =V697+Y697+AB697+AE697+AH697+AK697+AN697+AQ697+V707+Y707+AB707+AE707+AH707+AK707+AN707+AQ707 -> -0.05311 | AR8: Beräkning av effektivitetstal
A9: En Samlad effektbedömning kan riggas så att kalkylresultat kan klistras in MANUELLT i denna flik och sedan länkas vidare in till andra flikar i den Samlade effektbedömningen. Här nedan finns möjlighet att klistra in resultat från Samkalk. Observera att en förifylld Samlad effektbedömning är en hjälp om man använt ett visst verktyg. Det som lagts och länkats in i en förifylld SEB ligger oskyddat till skillnad från länkar som ligger i grundmallen. Länkar som lagts in kan av misstag skrivas över (om mallen använts av personer som inte är uppmärksammade på hur mallen fungerar). Ansvaret för att kontrollera att detta inte skett ligger hos den som upprättar SEBen. | T9: Effektbenämning och kortfattad beskrivning | U9: Ex på årlig effekt för prognosår 1 | W9: Nuvärde detaljerat (mnkr) | Z9: Effektbenämning och kortfattad beskrivning | AA9: Ex på årlig effekt för prognosår 1 | AC9: Nuvärde detaljerat (mnkr) | AF9: Effektbenämning och kortfattad beskrivning | AG9: Ex på årlig effekt för prognosår 1 | AI9: Nuvärde detaljerat (mnkr) | AL9: Effektbenämning och kortfattad beskrivning | AM9: Ex på årlig effekt för prognosår 1 | AO9: Nuvärde detaljerat (mnkr) | AP9: MAS | AQ9: =V698+Y698+AB698+AE698+AH698+AK698+AN698+AQ698+V708+Y708+AB708+AE708+AH708+AK708+AN708+AQ708 -> -0.29444 | AR9: Beräkna Annuitetskostnad
S10: Till "RESENÄRER" i SEB | T10: Restid pb, regionalt tjänste | U10: =V550 -> -0.00538 | V10: Mh/år | W10: =-V268 -> 57.32312 | Y10: Till "GODSTRANSPORTER" i SEB | Z10: Restid pb yrkestrafik | AA10: =Y514 -> -0.01938 | AB10: Mh/år | AC10: =-Y256 -> 169.29739 | AE10: Till "PERSON-TRANSPORTER" i SEB | AF10: Biljettintäkter | AG10: =AH455+AK455+AN455+AQ455 -> -0.29989 | AH10: mnkr/år | AI10: =AH107+AK107+AN107+AQ107 -> -6.43773 | AK10: Till "TRAFIKSÄKERHET" i SEB | AL10: Trafiksäkerhet | AO10: =B35*(V412+Y412)*V367/V715 -> 38.85090494 | AP10: AS-MAS | AQ10: =V699+Y699+AB699+AE699+AH699+AK699+AN699+AQ699+V709+Y709+AB709+AE709+AH709+AK709+AN709+AQ709 -> -1.35377 | AR10: Kapitaliserad inv.kostnad exkl. skattefaktor | AU10: =U763/1.3 -> 76.92307692 | AV10: mnkr | AX10: Kapitaliserad inv.kostnad inkl. skattefaktor | AY10: =U763 -> 100 | AZ10: mnkr
A11: LÄS DETTA INNAN KALKYLRESULTAT HÄMTAS IN: När makrot för långväga resor körts se PM ("PM-Beräkning av KÖ för långväga bilresor vid väganalyser i Samkalk") på Samkalks webbsida. Observera att dessa effekter ska fyllas i direkt i flik 2, alternativt i SEB-IT. Övergripande instruktion för denna flik: Observera att en förifylld Samlad effektbedömning är en hjälp om man använt ett visst verktyg. Det som lagts och länkats in i en förifylld SEB ligger oskyddat till skillnad från länkar som ligger i grundmallen. Länkar som lagts in kan av misstag skrivas över (om mallen använts av personer som inte är uppmärksammade på hur mallen fungerar). Ansvaret för att kontrollera att detta inte skett ligger hos den som upprättar SEBen. Från SK46 ska följande flikar klistras in i denna flik: - "Diskonterade resultat" (se cell S35) - "Resultat prognosår" (se cell S383) - "Lönsamhetsberäkning" (se cell S731) - "Förutsättningar" (se cell S777) Förklaringar av färger på celler: - I blåa celler ligger de instruktioner som ska följas. - Svarta celler ska inte fyllas i i denna flik utan läggs in direkt i flik 2. - I celler med röda ramar ska data matas in av användaren: * Excelflikarna "Diskonterade resultat", "Resultat prognosår", "Lönsamhetsberäkning" samt "Förutsättingar" från Samkalk SK- fil ska klistras in enligt instruktion. - I gråa celler sker beräkningar i ett mellansteg innan beräkningen länkas vidare till flikarna 2. och 4. i den Samlade effektbedömningen. | T11: Restid pb, långväga tjänste | X11: Manuell inmatn enligt PM om långväga resor pb läggs inte in här utan direkt i flik 2 | Z11: Restid lastbil (utan släp) | AA11: =AB514 -> -0.02483 | AB11: Mh/år | AC11: =-AB256 -> 216.83833 | AF11: Fordonskostnader för kollektivtrafik | AG11: =AH464+AK464+AN464+AQ464 -> -0.04199 | AH11: mnkr/år | AI11: =-AH116-AK116-AN116-AQ116 -> 1.07868 | AO11: =(B36*AB412)+(B37+AE412)*(AB367)/(AB715) -> 16.69488217 | AP11: EAS | AQ11: =V700+Y700+AB700+AE700+AH700+AK700+AN700+AQ700+V710+Y710+AB710+AE710+AH710+AK710+AN710+AQ710 -> -8.33795 | AR11: Diskonteringsränta hämtas från gälland ASEK | AU11: 0.035 | AX11: Diskonteringsränta hämtas från gälland ASEK | AY11: =U1768/100 -> 0.035
T12: Restid pb, regionalt arbete | U12: =V572 -> -0.04481 | V12: Mh/år | W12: =-V274 -> 142.1734 | Z12: Restid lastbil (släp) | AA12: =AE514 -> -0.01448 | AB12: Mh/år | AC12: =-AE256 -> 126.41621 | AF12: Moms på biljettintäkter | AG12: =AH465+AK465+AN465+AQ465 -> -0.01698 | AH12: mnkr/år | AI12: =-AH117-AK117-AN117-AQ117 -> 0.3644 | AK12: Till "KLIMAT" i SEB | AL12: CO2-ekvivalenter | AM12: =V675+Y675+AB675+AE675+AH675+AK675+AQ675 -> -0.09448 | AN12: kton/år | AO12: =-V340-Y340-AB340-AE340-AH340-AK340-AN340-AQ340 -> 20.63522 | AR12: Använd Kalkylperiod i aktuell kalkyl | AU12: ='2. Samhällsekonomisk analys'!AJ18 -> 40 | AV12: år | AX12: Använd Kalkylperiod i aktuell kalkyl | AY12: ='2. Samhällsekonomisk analys'!AJ18 -> 40 | AZ12: år
T13: Restid pb, regionalt övr. privat | U13: =V561 -> -0.1373 | V13: Mh/år | W13: =-V271 -> 297.64402 | Z13: Reskostnad pb yrkestrafik | AA13: =Y583 -> -0.1489 | AB13: Mkr/år | AC13: =-Y235 -> 3.25053 | AF13: Banavgifter | AG13: =AH466+AK466+AN466+AQ466 -> -0.00049 | AH13: mnkr/år | AI13: =-AH118-AK118-AN118-AQ118 -> 0.01048 | AO13: =AO10+AO11+AH367+AK367+AN367+AQ367 -> 55.54578711 | AR13: Annuitetskostnad exklusive skattefaktor beräknas: | AU13: =AU10/((1-(1+AU11)^-AU12)/AU11) -> 3.602098635 | AV13: mnkr | AX13: Annuitetskostnad inklusive skattefaktor beräknas: | AY13: =AY10/((1-(1+AY11)^-AY12)/AY11) -> 4.682728226 | AZ13: mnkr
T14: Restid pb, långväga arbete & övr. | X14: Manuell inmatn enligt PM om långväga resor pb läggs inte in här utan direkt i flik 2 | Z14: Reskostnad lastbil (utan släp) | AA14: =AB583 -> -3.09087 | AB14: Mkr/år | AC14: =-AB235 -> 67.47348 | AI14: =SUM(AI10:AI13) -> -4.98417 | AK14: Till "HÄLSA" i SEB | AL14: Kväveoxider | AM14: =V669+Y669+AB669+AE669+AH669+AK669+AQ669 -> -0.30299 | AN14: ton/år | AO14: =-V334-Y334-AB334-AE334-AH334-AK334-AN334-AQ334 -> 0.03815 | AR14: Uppgifter om D och AS hämtas automatiskt från inklistrade värden i denna flik (kommer från "Resultat prognosår" från SK-fil
T15: Reskostnad pb, regionalt tjänste | U15: =V595 -> -0.00472 | V15: mnkr | W15: =-V247 -> 0.10313 | Z15: Reskostnad lastbil (släp) | AA15: =AE583 -> -0.32851 | AB15: Mkr/år | AC15: =-AE235 -> 7.17128 | AL15: Avgaspartiklar | AM15: =V672+Y672+AB672+AE672+AH672+AK672+AQ672 -> -0.00389 | AN15: ton/år | AO15: =-V337-Y337-AB337-AE337-AH337-AK337-AN337-AQ337 -> 2.46229 | AQ15: Nya förutsättningar. Info hämtas direkt från SK-filens data som är inkopierad nedan | AR15: Förändrade antal D hämtas från inklistrad SK-fil i denna flik | AU15: =AQ8 -> -0.05311 | AV15: D/år
T16: Reskostnad pb, långväga tjänste | X16: Manuell inmatn enligt PM om långväga resor pb läggs inte in här utan direkt i flik 2 | Z16: Transporttid gods pb yrkestrafik | AA16: =Y646 -> -0.04846 | AB16: Mkr/år | AC16: =-Y298 -> 1.05794 | AL16: Slitagepartiklar | AM16: =V678+Y678+AB678+AE678+AH678+AK678+AQ678 -> -0.08269 | AN16: ton/år | AO16: =-V343-Y343-AB343-AE343-AH343-AK343-AN343-AQ343 -> 85.37226 | AR16: Förändrade antal AS hämtas från inklistrad SK-fil i denna flik | AU16: =AQ9+AQ10 -> -1.64821 | AV16: AS/år
T17: Reskostnad pb, regionalt arbete | U17: =V601 -> -0.0344 | V17: mnkr | W17: =-V253 -> 0.75085 | Z17: Transporttid gods lastbil (u. släp) | AA17: =AB646 -> -0.14483 | AB17: Mkr/år | AC17: =-AB298 -> 3.16163 | AR17: AS
T18: Reskostnad pb, regionalt övr. privat | U18: =V598 -> -0.0864 | V18: mnkr | W18: =-V250 -> 1.88615 | Z18: Transporttid gods lastbil (släp) | AA18: =AE646 -> -0.44874 | AB18: Mkr/år | AC18: =-AE298 -> 9.79591 | AO18: =SUM(AO14:AO17) -> 87.8727
T19: Reskostnad pb, långväga arbete & övr. | X19: Manuell inmatn enligt PM om långväga resor pb läggs inte in här utan direkt i flik 2 | Z19: Vägavgifter/ vägskatt pb yrkestrafik | AA19: =Y625 -> 0 | AB19: Mkr/år | AC19: =-Y277 -> 0 | AR19: Kostnadseffektivitetens benämning och kortfattad beskrivning | AT19: År som kostnads-effektiviteten redovisas för | AV19: Effekter som ska klistras in i SEB-IT för beräkning av kostnadseffektivitetstal
T20: Vägavgifter/vägskatt pb | U20: =V625 -> 0 | V20: mnkr | W20: =-V277 -> 0 | Z20: Vägavgifter/ vägskatt lastbil (u. släp) | AA20: =AB625 -> 0 | AB20: Mkr/år | AC20: =-AB277 -> 0 | AK20: Till "ÖVRIGA EXTERNA EFFEKTER" i SEB | AL20: Mariginellt slitage | AM20: =V719+Y719+AB719+AE719+AH719+AK719+AQ719 -> -0.31492 | AN20: mnkr/år | AO20: =-V371-Y371-AB371-AE371-AH371-AK371-AQ371 -> 6.87438
T21: Restid tåg, långväga | U21: =AK514 -> 0 | V21: Mh/år | W21: =-AK256 -> 0 | Z21: Vägavgifter/ vägskatt lastbil (släp) | AA21: =AE625 -> 0 | AB21: Mkr/år | AC21: =-AE277 -> 6e-05 | AR21: Trafik-säkerhet | AS21: Förändrade antal liv per mdrkr | AT21: =AU15/(AU13/1000) -> -14.74418259 | AU21: D/ mdrkr | AV21: =AU15 -> -0.05311 | AW21: Döda per år (för prognosår 1)
T22: Reskostnad tåg, långväga | U22: =AK583 -> 0 | V22: mnkr | W22: =-AK235 -> 0 | AC22: =SUM(AC10:AC21) -> 604.46276 | AK22: Till "BUDGETEFFEKTER" i SEB | AL22: Drivmedelsskatt för vägtrafik, regionalt | AM22: =V479+Y479+AB479+AE479 -> 1.07717 | AN22: mnkr/år | AO22: =V131+Y131+AB131+AE131 -> 23.51436 | AR22: Trafik-säkerhet | AS22: Förändrade antal DAS (döda och allvarligt skadade) per mdrkr | AT22: =(AU16+AU15)/(AU13/1000) -> -472.3135517 | AU22: DAS/ mdrnkr | AV22: =AU15+AU16 -> -1.70132 | AW22: DAS per år (för prognosår 1)
T23: Restid kollektivtrafik, regionalt | U23: =AN514 -> 0 | V23: Mh/år | W23: =-AN256 -> 0 | AL23: Drivmedelsskatt för vägtrafik, långväga | AM23: =V469+Y469+AB469+AE469 -> 0 | AN23: mnkr/år | AO23: =V121+Y121+AB121+AE121 -> 0 | AP23: Om långväga makro pb körts så gäller manuell inmatning enligt PM direkt i flik 2 (rad 222) | AR23: Restid | AS23: Förändrade antal timmar (totalt) per tkr | AT23: =1000000*(V514+Y514+AB514+AE514+AH514+AK514+AN514+AQ514)/(AU13*1000) -> -68.3434922 | AU23: tim/ tkr | AV23: =(V514+Y514+AB514+AE514+AH514+AK514+AN514+AQ514)*1000 -> -246.18 | AW23: Restid ktim per år (för prognosår 1)
T24: Reskostnad kollektivtrafik, regionalt | U24: =AN583 -> 0 | V24: mnkr | W24: =-AN235 -> 0 | AL24: Vägavgifter/vägskatt | AM24: =V489+Y489+AB489+AE489 -> 0 | AN24: mnkr/år | AO24: =U743 -> -6e-05 | AR24: CO2 | AS24: Förändrade antal ton CO2 per mnkr | AT24: =1000*(V675+Y675+AB675+AE675+AH675+AK675+AN675+AQ675)/AU13 -> -26.22915405 | AU24: ton/ mnkr | AV24: =(V675+Y675+AB675+AE675+AH675+AK675+AN675+AQ675) -> -0.09448 | AW24: CO2 kton per år (för prognosår 1)
T25: Restid buss, långväga | U25: =AH514 -> 0 | V25: Mh/år | W25: =-AH256 -> 0 | AL25: Moms på biljettintäkter | AM25: =AH510+AK510+AN510+AQ510 -> -0.01698 | AN25: mnkr/år | AO25: =U744 -> -0.3644
T26: Reskostnad buss, långväga | U26: =AH583 -> 0 | V26: mnkr | W26: =-AH235 -> 0 | AL26: Banavgifter | AM26: =AK511+AN511 -> -0.00049 | AN26: mnkr/år | AO26: =U745 -> -0.01048
T27: Restid flyg | U27: =AQ514 -> 0 | V27: Mh/år | W27: =-AQ256 -> 0 | AL27: Moms fordonskostnader | AM27: =V512 -> 0 | AN27: mnkr/år | AO27: =U746 -> 0
T28: Reskostnad flyg | U28: =AQ583 -> 0 | V28: mnkr | W28: =-AQ235 -> 0 | AO28: =SUM(AO22:AO27) -> 23.13942
A29: Verktyg
A30: ="Samkalk"&" "&(RIGHT(S784,5)) -> Samkalk 3.4.6
W31: =SUM(W10:W28) -> 499.88067
A33: Siffror hämtade från Bansek | AO33: =SUM(AO30:AO32) -> 0
B34: Genomsnitt
A35: Pb | B35: 0.391 | S35: Markera och klipp ut alla cellerna från A1 till Y336 i fliken "Diskonterade resultat". Ställ markören i cellen S36 i denna flik och klistra in dessa celler med funktionen "Klistra in special"/"Värden".
A36: lbu | B36: 0.81 | S36: Diskonterade resultat
A37: lbs | B37: 0.81 | S37: N A T I O N E L L O C H R E G I O N A L T R A F I K
S38: Effekter och värden | T38: Pb | W38: Pby | Z38: Lbu | AC38: Lbs | AF38: Buss | AI38: Tåg | AL38: RegKoll | AO38: Flyg
S39: Kalkylperiod 2025-2064 | T39: Effekter | U39: Effekter | V39: Differens | W39: Effekter | X39: Effekter | Y39: Differens | Z39: Effekter | AA39: Effekter | AB39: Differens | AC39: Effekter | AD39: Effekter | AE39: Differens | AF39: Effekter | AG39: Effekter | AH39: Differens | AI39: Effekter | AJ39: Effekter | AK39: Differens | AL39: Effekter | AM39: Effekter | AN39: Differens | AO39: Effekter | AP39: Effekter | AQ39: Differens
T40: JA | U40: UA | V40: UA-JA | W40: JA | X40: UA | Y40: UA-JA | Z40: JA | AA40: UA | AB40: UA-JA | AC40: JA | AD40: UA | AE40: UA-JA | AF40: JA | AG40: UA | AH40: UA-JA | AI40: JA | AJ40: UA | AK40: UA-JA | AL40: JA | AM40: UA | AN40: UA-JA | AO40: JA | AP40: UA | AQ40: UA-JA
S41: ANTAL RESOR
S42: Antal resor, milj
S43: | nationellt
S44: | | tjänste
S45: | | | existerande/kvarvarande trafik
S46: | | | tillkommande/försvinnande trafik
S47: | | private
S48: | | | existerande/kvarvarande trafik
S49: | | | tillkommande/försvinnande trafik
S50: | | arbete
S51: | | | existerande/kvarvarande trafik
S52: | | | tillkommande/försvinnande trafik
S53: | regionalt
S54: | | tjänste
S55: | | | existerande/kvarvarande trafik
S56: | | | tillkommande/försvinnande trafik
S57: | | private
S58: | | | existerande/kvarvarande trafik
S59: | | | tillkommande/försvinnande trafik
S60: | | arbete
S61: | | | existerande/kvarvarande trafik
S62: | | | tillkommande/försvinnande trafik
S63: TRAFIK- OCH TRANSPORTARBETSUPPGIFTER
S64: Trafikarbete, milj fkm/vkm
S65: | nationellt
S66: | | tjänste
S67: | | | existerande/kvarvarande trafik
S68: | | | tillkommande/försvinnande trafik
S69: | | private
S70: | | | existerande/kvarvarande trafik
S71: | | | tillkommande/försvinnande trafik
S72: | | arbete
S73: | | | existerande/kvarvarande trafik
S74: | | | tillkommande/försvinnande trafik
S75: | regionalt
S76: | | tjänste
S77: | | | existerande/kvarvarande trafik
S78: | | | tillkommande/försvinnande trafik
S79: | | private
S80: | | | existerande/kvarvarande trafik
S81: | | | tillkommande/försvinnande trafik
S82: | | arbete
S83: | | | existerande/kvarvarande trafik
S84: | | | tillkommande/försvinnande trafik
S85: Transportarbete, milj pkm
S86: | nationellt
S87: | | tjänste
S88: | | | existerande/kvarvarande trafik
S89: | | | tillkommande/försvinnande trafik
S90: | | private
S91: | | | existerande/kvarvarande trafik
S92: | | | tillkommande/försvinnande trafik
S93: | | arbete
S94: | | | existerande/kvarvarande trafik
S95: | | | tillkommande/försvinnande trafik
S96: | regionalt
S97: | | tjänste
S98: | | | existerande/kvarvarande trafik
S99: | | | tillkommande/försvinnande trafik
S100: | | private
S101: | | | existerande/kvarvarande trafik
S102: | | | tillkommande/försvinnande trafik
S103: | | arbete
S104: | | | existerande/kvarvarande trafik
S105: | | | tillkommande/försvinnande trafik
S106: PRODUCENTOVERSKOTT
S107: Biljettintäkter, MSEK | AF107: 85737.03906 | AG107: 85731.28125 | AH107: -5.76305 | AI107: 290588 | AJ107: 290587.3125 | AK107: -0.67468 | AO107: 155552.2188 | AP107: 155552.2188
S108: | nationellt | AF108: 46948.84766 | AG108: 46948.84766 | AI108: 285078.6562 | AJ108: 285078.6562 | AO108: 155552.2188 | AP108: 155552.2188
S109: | | tjänste | AF109: 813.1264 | AG109: 813.1264 | AI109: 110534.2031 | AJ109: 110534.2031 | AO109: 100356.0469 | AP109: 100356.0469
S110: | | private | AF110: 43575.15625 | AG110: 43575.15625 | AI110: 144361.6406 | AJ110: 144361.6406 | AO110: 42794.58984 | AP110: 42794.58984
S111: | | arbete | AF111: 2560.56641 | AG111: 2560.56641 | AI111: 30182.80664 | AJ111: 30182.80664 | AO111: 12401.58594 | AP111: 12401.58594
S112: | regionalt | AF112: 38788.19141 | AG112: 38782.42969 | AH112: -5.76305 | AI112: 5509.3457 | AJ112: 5508.6709 | AK112: -0.67468
S113: | | tjänste | AF113: 1467.15564 | AG113: 1466.92529 | AH113: -0.23036 | AI113: 261.08817 | AJ113: 261.07639 | AK113: -0.01175
S114: | | private | AF114: 30720.17188 | AG114: 30716.72852 | AH114: -3.44293 | AI114: 3763.08154 | AJ114: 3762.99121 | AK114: -0.09015
S115: | | arbete | AF115: 6600.86328 | AG115: 6598.77344 | AH115: -2.08975 | AI115: 1485.17578 | AJ115: 1484.60303 | AK115: -0.57278
S116: Fordonskostnader för kollektivtrafik, MSEK | AF116: 275023.9891 | AG116: 275023.3192 | AH116: -0.6699 | AI116: 301238.6248 | AJ116: 301238.216 | AK116: -0.40878 | AO116: 261720.7666 | AP116: 261720.7666
S117: Moms på biljettintäkter, MSEK | AF117: 4853.04002 | AG117: 4852.71411 | AH117: -0.32621 | AI117: 16448.3776 | AJ117: 16448.33869 | AK117: -0.03819 | AO117: 8804.8427 | AP117: 8804.8427
S118: Banavgifter, MSEK | AI118: 24099.99465 | AJ118: 24099.98417 | AK118: -0.01048
S119: BUDGETEFFEKTER
S120: Drivmedelsskatt för vägtrafik, MSEK | T120: 340359.4749 | U120: 340394.6083 | V120: 35.13199 | W120: 48200.31152 | X120: 48200.02244 | Y120: -0.33072 | Z120: 34713.03008 | AA120: 34703.34152 | AB120: -9.68121 | AC120: 66666.12872 | AD120: 66664.45264 | AE120: -1.6057
S121: | nationellt | T121: 124557.9261 | U121: 124557.9261
S122: | | tjänste | T122: 30127.903 | U122: 30127.903
S123: | | | existerande/kvarvarande trafik
S124: | | | tillkommande/försvinnande trafik
S125: | | private | T125: 85797.48984 | U125: 85797.48984
S126: | | | existerande/kvarvarande trafik
S127: | | | tillkommande/försvinnande trafik
S128: | | arbete | T128: 8632.53178 | U128: 8632.53178
S129: | | | existerande/kvarvarande trafik
S130: | | | tillkommande/försvinnande trafik
S131: | regionalt | T131: 215801.5488 | U131: 215836.6822 | V131: 35.13199 | W131: 48200.31152 | X131: 48200.02244 | Y131: -0.33072 | Z131: 34713.03008 | AA131: 34703.34152 | AB131: -9.68121 | AC131: 66666.12872 | AD131: 66664.45264 | AE131: -1.6057
S132: | | tjänste | T132: 12440.68628 | U132: 12441.84114 | V132: 1.16368 | W132: 48200.31152 | X132: 48200.02244 | Y132: -0.33072 | Z132: 34713.03008 | AA132: 34703.34152 | AB132: -9.68121 | AC132: 66666.12872 | AD132: 66664.45264 | AE132: -1.6057
S133: | | | existerande/kvarvarande trafik | V133: 0.00345 | Y133: -0.33072 | AB133: -9.68121 | AE133: -1.6057
S134: | | | tillkommande/försvinnande trafik | V134: 1.16024
S135: | | private | T135: 117707.6411 | U135: 117731.7603 | V135: 24.09639
S136: | | | existerande/kvarvarande trafik | V136: 0.20745
S137: | | | tillkommande/försvinnande trafik | V137: 23.88893
S138: | | arbete | T138: 85653.236 | U138: 85663.07056 | V138: 9.87191
S139: | | | existerande/kvarvarande trafik | V139: 0.1471
S140: | | | tillkommande/försvinnande trafik | V140: 9.72481
S141: Vägavgifter/vägskatt, MSEK | AE141: -6e-05
S142: | nationellt
S143: | | tjänste
S144: | | | existerande/kvarvarande trafik
S145: | | | tillkommande/försvinnande trafik
S146: | | private
S147: | | | existerande/kvarvarande trafik
S148: | | | tillkommande/försvinnande trafik
S149: | | arbete
S150: | | | existerande/kvarvarande trafik
S151: | | | tillkommande/försvinnande trafik
S152: | regionalt | AE152: -6e-05
S153: | | tjänste | AE153: -6e-05
S154: | | | existerande/kvarvarande trafik | AE154: -6e-05
S155: | | | tillkommande/försvinnande trafik
S156: | | private
S157: | | | existerande/kvarvarande trafik
S158: | | | tillkommande/försvinnande trafik
S159: | | arbete
S160: | | | existerande/kvarvarande trafik
S161: | | | tillkommande/försvinnande trafik
S162: Moms på biljettintäkter, MSEK | AF162: 4853.04002 | AG162: 4852.71411 | AH162: -0.32621 | AI162: 16448.3776 | AJ162: 16448.33869 | AK162: -0.03819 | AO162: 8804.8427 | AP162: 8804.8427
S163: Banavgifter, MSEK | AI163: 24099.99465 | AJ163: 24099.98417 | AK163: -0.01048
S165: KONSUMENTOVERSKOTT
S166: Restider, Mh
S167: | nationellt
S168: | | tjänste
S169: | | | existerande/kvarvarande trafik
S170: | | | | åktid
S171: | | | | anslutningstid
S172: | | | | bytestid
S173: | | | | väntetid
S174: | | | tillkommande/försvinnande trafik
S175: | | | | åktid
S176: | | | | anslutningstid
S177: | | | | bytestid
S178: | | | | väntetid
S179: | | private
S180: | | | existerande/kvarvarande trafik
S181: | | | | åktid
S182: | | | | anslutningstid
S183: | | | | bytestid
S184: | | | | väntetid
S185: | | | tillkommande/försvinnande trafik
S186: | | | | åktid
S187: | | | | anslutningstid
S188: | | | | bytestid
S189: | | | | väntetid
S190: | | arbete
S191: | | | existerande/kvarvarande trafik
S192: | | | | åktid
S193: | | | | anslutningstid
S194: | | | | bytestid
S195: | | | | väntetid
S196: | | | tillkommande/försvinnande trafik
S197: | | | | åktid
S198: | | | | anslutningstid
S199: | | | | bytestid
S200: | | | | väntetid
S201: | regionalt
S202: | | tjänste
S203: | | | existerande/kvarvarande trafik
S204: | | | | åktid
S205: | | | | anslutningstid
S206: | | | | bytestid
S207: | | | | väntetid
... 1579 more rows

Sheet 2. Samhällsekonomisk analys
A1: Samlad effektbedömning v 1.17 | BN1: m | BO1: u | BQ1: Instruktioner | BT1: Kommentar Upprättaren | BU1: Kommentar Regional granskare | BV1: Kommentar Nationell granskare
A2: Objektnummer: Objekt-id, Ärendenummer: Ärendenr Kontaktperson: Ej skickad till granskning Skede: Ej angett Status: Ej granskad av Trafikverket, Ej godkänd | AV2: Samlad Effektbedömning
A3: 2. Samhällsekonomisk analys
A5: Tabell 2.1 Allmänna kalkylförutsättningar för samhällsekonomisk kalkyl
A6: Prognos persontrafik - huvudanalys | AJ6: Basprognoser 2023-04-01
A7: Avvikelse från prognos persontrafik | AJ7: Nej
A8: Prognos godstrafik - huvudanalys | AJ8: Basprognoser 2023-04-01
A9: Avvikelse från prognos godstrafik | AJ9: Nej
A10: ASEK-version | AJ10: ASEK 7.1
A11: Avvikelse från ASEK | AJ11: Nej
A12: Prisnivå för kalkylvärden | AJ12: 2017-medel
A13: Kalkylränta % | AJ13: ='0.5. Importera data fr. verktyg'!AU11 -> 0.035
A14: Prognosår 1 | AJ14: ='0.5. Importera data fr. verktyg'!U1809 -> 0
A15: Diskonteringsår | AJ15: ='0.5. Importera data fr. verktyg'!U1810 -> 0
A16: Öppningsår | AJ16: ='0.5. Importera data fr. verktyg'!U1813 -> 0
A17: Utförandetid/byggtid, antal år (projektspecifik) | AJ17: Ej angett
A18: Kalkylperiod från startår för effekter | AJ18: =IF('0.5. Importera data fr. verktyg'!T1785=0,'0.5. Importera data fr. verktyg'!U1785,'0.5. Importera data fr. verktyg'!T1785) -> 40
A19: Kalkylverktyg - samhällsekonomi | AJ19: ='0.5. Importera data fr. verktyg'!A30 -> Samkalk 3.4.6
A20: Datum för samhällsekonomisk kalkyl | AJ20: =RIGHT('0.5. Importera data fr. verktyg'!S782,19) -> 2023-03-01 09:32:09
A21: Trafiktillväxttal Väg (pb,pby, lbu, lbs) period 2017-2040, % per år | AJ21: =IF('0.5. Importera data fr. verktyg'!T1777>0,'0.5. Importera data fr. verktyg'!T1777,'0.5. Importera data fr. verktyg'!U1777) -> 0.5500000119
A22: Trafiktillväxttal Väg (pb,pby, lbu, lbs) period 2040-2065, % per år | AJ22: =IF('0.5. Importera data fr. verktyg'!T1780>0,'0.5. Importera data fr. verktyg'!T1780,'0.5. Importera data fr. verktyg'!U1780) -> 0.2599999905
A23: Trafiktillväxttal Kollektivtrafik period 2017-2040, % per år | AJ23: =IF('0.5. Importera data fr. verktyg'!T1778>0,'0.5. Importera data fr. verktyg'!T1778,'0.5. Importera data fr. verktyg'!U1778) -> 1.870000005
A24: Trafiktillväxttal Kollektivtrafik period 2040-2065, % per år | AJ24: =IF('0.5. Importera data fr. verktyg'!T1781>0,'0.5. Importera data fr. verktyg'!T1781,'0.5. Importera data fr. verktyg'!U1781) -> 0.9800000191
A25: Trafiktillväxttal | AJ25: Ej angett
A26: Trafiktillväxttal | AJ26: Ej angett
A27: Trafiktillväxttal | AJ27: Ej angett
A28: Trafiktillväxttal | AJ28: Ej angett
A29: Trafiktillväxttal | AJ29: Ej angett | BQ29: Här finns möjlighet att själv välja fler trafikslag för vilka det finns trafiktillväxttal i analysen
A30: Trafiktillväxttal | AJ30: Ej angett
A31: Trafiktillväxttal | AJ31: Ej angett
A32: Trafiktillväxttal | AJ32: Ej angett
A33: Trafiktillväxttal | AJ33: Ej angett
A34: Trafiktillväxttal | AJ34: Ej angett
A35: Trafiktillväxttal | AJ35: Ej angett
A36: Trafiktillväxttal | AJ36: Ej angett
A37: Trafiktillväxttal | AJ37: Ej angett
A38: Trafiktillväxttal | AJ38: Ej angett
A40: Kommentar
A41: Ej angett | BQ41: Avvikelser från gällande förutsättningar beskrivs här
A44: Tabell 2.2 Nyckeltal samhällsekonomi
AS45: Samhälls-ekonomisk investerings-kostnad inkl skattefaktor (mnkr) | BB45: Netto-nuvärde* (mnkr) | BH45: NNK-idu** | BM45: Dou-kostnad (mnkr) | BN45: Summa nyttor (mnkr) | BQ45: För mer information se flik Instruktioner Om NNK-idu är under noll ska < 0 skrivas ut Gäller både huvudanalys och alla känslighetsanalyser
A46: Huvudanalys | AS46: =ABS(AF251) -> 100 | BB46: =AF252 -> 1082.335193 | BH46: =IF(AS46=0," -",IF(BB46=" -"," -", IF(BB46/(-(AF236)+AS46)<0, " < 0",BB46/(-(AF236)+AS46)))) -> 10.82335193 | BM46: =AF236 -> 0 | BN46: =SUM(AF68:AJ250) -> 1182.335193
A47: Känslighetsanalys Högre investeringskostnad t.ex. successivkalkyl 85% eller motsvarande | AS47: =ABS(AF251)*1.3 -> 130 | BB47: =IF((SUM(AF68,AF91,AF113,AF133,AF150,AF173,AF189,AF204,AF221,AF235,AF236)=0)," -", (SUM(AF68,AF91,AF113,AF133,AF150,AF173,AF189,AF204,AF221,AF235,AF236)-AS47)) -> 1052.335193 | BH47: =IF(AS47=0," -",IF(BB47=" -"," -", IF(BB47/(-(AF236)+AS47)<0, " < 0",BB47/(-(AF236)+AS47)))) -> 8.094886099 | BM47: =AF236 -> 0 | BN47: =SUM(AF68:AJ250) -> 1182.335193 | BQ47: Känslighetsanalys högre invkostnad är defalut 1,3 * huvudanalysens kostnad, detta ska ersättas med uppgifter för 85% nivån om sådant underlag finns.
BB48: - | BH48: - | BM48: =IF([6]SEB!D28<>"",[6]SEB!D28/1000,"") ->  | BN48: =IF([6]SEB!E28 <>"",[6]SEB!E28/1000,"") -> 
A49: Känslighetsanalys Trafiktillväxt 0% från basåret | BB49: - | BH49: -
A50: Känslighetsanalys Trafiktillväxt 50% högre från basåret och jämfört med huvudkalkylen | BB50: - | BH50: -
A51: Ej angett | BB51: - | BH51: -
A52: Ej angett | BB52: - | BH52: -
A53: Ej angett | BB53: - | BH53: -
A54: Ej angett | BB54: - | BH54: -
A55: Ej angett | BB55: - | BH55: -
A56: Ej angett | BB56: - | BH56: -
A57: * Nettonuvärdet är lika med summan av nuvärdet av alla positiva och negativa nyttoeffekter (årliga samhällsekonomiska intäkter och kostnader) minus investeringskostnaden.
A58: **Nettonuvärdeskvoten NNK-idu är lika med nettonuvärdet dividerat med summan av den samhällsekonomiska investeringskostnaden och nuvärdet av nettoförändringen av drift- och underhållskostnader för infrastrukturhållaren.
A59: Kommentar
A60: Ej angett
A62: Samhällsekonomisk analys
A63: I tabell 2.5a redovisas de effekter av åtgärden som är samhällsekonomiskt relevanta och som har kvantifierats och värderats monetärt (genom marknadspris eller skuggprisvärdering, direkt kostnadsberäkning eller alternativkostnadsvärdering). Samhällsekonomiskt relevanta effekter ska finnas med i den samhällsekonomiska analysen antingen som värderade effekter i tabell 2.5a eller som svårvärderade effekter i tabell 2.6a. I de fall en effekt är konstaterad och eventuellt kvantifierad men inte värderad redovisas den verbalt och bedöms i tabell 2.6a. Normalt redovisas en viss effekt antingen monetärt värderad i tabell 2.5a eller enbart beskriven i tabell 2.6a. I vissa fall omfattar emellertid den monetära värderingen av en effekt endast vissa delar av effektens samhällsekonomiska konsekvenser. I sådana fall kan man komplettera den monetära värderingen av effekten i tabell 2.5a med en beskrivning i tabell 2.6a av de delar av effekten som inte ingår i värderingen. Beräkningarna i avsnitt 2.1 och bedömningarna i avsnitt 2.2 är underlag för den sammanvägda bedömningen av om åtgärden är lönsam eller olönsam. Den bedömningan görs i avsnitt 2.3. | BM63: Den här texten behöver slås ihop med den nedan.
A64: Tabell 2.3 Samhällsekonomisk analys | BQ64: Vad är inte obligatoriskt vid enkel SEB.
S65: Effekter som värderats monetärt och som ingår i beräkning av nettonuvärde | AL65: Effekter som inte ingår i beräkningen av nettonuvärde men som ingår i den sammanvägda bedömningen | BQ65: Vid SEB utan samhällsekonomisk kalyl används endast den högra sidan av tabellen.
A66: Berörd/ påverkad av effekt | G66: Effektbenämning och kortfattad beskrivning | S66: Ex på årlig effekt för prognosår 1 | AA66: Nuvärde detaljerat (mnkr) | AF66: Nuvärde över- siktligt (mnkr) | AL66: Bedömning | AU66: Samman- vägd bedömning | BA66: Kortfattad beskrivning
S67: =AJ14 -> 0
A68: TRAFIKANT EFFEKTER | D68: RESENÄRER | G68: Restid pb, regionalt tjänste | S68: ='0.5. Importera data fr. verktyg'!U10*1000 -> -5.38 | W68: kptim/år | AA68: ='0.5. Importera data fr. verktyg'!W10 -> 57.32312 | AF68: =IF(ISNUMBER(SUM(AA68:AE90)),SUM(AA68:AE90),0) -> 499.88067 | AL68: Ej bedömt | AU68: Ej bedömt | BA68: Ej angett | BM68: =$AJ$19 -> Samkalk 3.4.6 | BQ68: I kolumn "Bedömning" görs bedömning av effekten på skalan Negativt/Försumbart/Positivt/Ingen effekt och kommentar till bedömningen skrivs därefter. Om effekten fångas i de monetärt värderade effekterna anges istället "-". I kolumn "Sammanvägd bedömning" görs på skalan Negativt/Försumbart/Positivt (obs alltså kan inte vara "ingen effekt") I kolumn "kortfattad beskrivning" skrivs en kortfattad text om bedömningen obs att denna går till sammanfattningen som har begränsat utrymme.
G69: Restid pb, långväga tjänste | S69: Ej angett | W69: kptim/år | AA69: Ej beräknat | AL69: Ej bedömt | BM69: =$AJ$19 -> Samkalk 3.4.6
G70: Restid pb, regionalt arbete | S70: ='0.5. Importera data fr. verktyg'!U12*1000 -> -44.81 | W70: kptim/år | AA70: ='0.5. Importera data fr. verktyg'!W12 -> 142.1734 | AL70: Ej bedömt | BM70: Samkalk 3.4.6
G71: Restid pb, regionalt övr. privat | S71: ='0.5. Importera data fr. verktyg'!U13*1000 -> -137.3 | W71: kptim/år | AA71: ='0.5. Importera data fr. verktyg'!W13 -> 297.64402 | AL71: Ej bedömt | BM71: Samkalk 3.4.6
G72: Restid pb, långväga arbete & övr. | S72: Ej angett | W72: kptim/år | AA72: Ej beräknat | AL72: Ej bedömt | BM72: Samkalk 3.4.6
G73: Reskostnad pb, regionalt tjänste | S73: ='0.5. Importera data fr. verktyg'!U15 -> -0.00472 | W73: mnkr/år | AA73: ='0.5. Importera data fr. verktyg'!W15 -> 0.10313 | AL73: Ej bedömt | BM73: Samkalk 3.4.6
G74: Reskostnad pb, långväga tjänste | S74: Ej angett | W74: mnkr/år | AA74: Ej beräknat | AL74: Ej bedömt | BM74: Samkalk 3.4.6
G75: Reskostnad pb, regionalt arbete | S75: ='0.5. Importera data fr. verktyg'!U17 -> -0.0344 | W75: mnkr/år | AA75: ='0.5. Importera data fr. verktyg'!W17 -> 0.75085 | AL75: Ej bedömt | BM75: Samkalk 3.4.6
G76: Reskostnad pb, regionalt övr. privat | S76: ='0.5. Importera data fr. verktyg'!U18 -> -0.0864 | W76: mnkr/år | AA76: ='0.5. Importera data fr. verktyg'!W18 -> 1.88615 | AL76: Ej bedömt | BM76: Samkalk 3.4.6
G77: Reskostnad pb, långväga arbete & övr. | S77: Ej angett | W77: mnkr/år | AA77: Ej beräknat | AL77: Ej bedömt | BM77: Samkalk 3.4.6
G78: Vägavgifter/ vägskatt pb | S78: ='0.5. Importera data fr. verktyg'!U20 -> 0 | W78: mnkr/år | AA78: ='0.5. Importera data fr. verktyg'!W20 -> 0 | AL78: Ej bedömt | BM78: Samkalk 3.4.6
G79: Restid tåg, långväga | S79: ='0.5. Importera data fr. verktyg'!U21*1000 -> 0 | W79: kptim/år | AA79: ='0.5. Importera data fr. verktyg'!W21 -> 0 | AL79: Ej bedömt | BM79: Samkalk 3.4.6
G80: Reskostnad tåg, långväga | S80: ='0.5. Importera data fr. verktyg'!U22 -> 0 | W80: mnkr/år | AA80: ='0.5. Importera data fr. verktyg'!W22 -> 0 | AL80: Ej bedömt | BM80: Samkalk 3.4.6
G81: Restid kollektivtrafik, regionalt | S81: ='0.5. Importera data fr. verktyg'!U23*1000 -> 0 | W81: kptim/år | AA81: ='0.5. Importera data fr. verktyg'!W23 -> 0 | AL81: Ej bedömt | BM81: Samkalk 3.4.6
G82: Reskostnad kollektivtrafik, regionalt | S82: ='0.5. Importera data fr. verktyg'!U24 -> 0 | W82: mnkr/år | AA82: ='0.5. Importera data fr. verktyg'!W24 -> 0 | AL82: Ej bedömt | BM82: Samkalk 3.4.6
G83: Restid buss, långväga | S83: ='0.5. Importera data fr. verktyg'!U25*1000 -> 0 | W83: kptim/år | AA83: ='0.5. Importera data fr. verktyg'!W25 -> 0 | AL83: Ej bedömt | BM83: Samkalk 3.4.6
G84: Reskostnad buss, långväga | S84: ='0.5. Importera data fr. verktyg'!U26 -> 0 | W84: mnkr/år | AA84: ='0.5. Importera data fr. verktyg'!W26 -> 0 | AL84: Ej bedömt | BM84: Samkalk 3.4.6
G85: Restid flyg | S85: ='0.5. Importera data fr. verktyg'!U27*1000 -> 0 | W85: kptim/år | AA85: ='0.5. Importera data fr. verktyg'!W27 -> 0 | AL85: Ej bedömt | BM85: Samkalk 3.4.6
G86: Reskostnad flyg | S86: ='0.5. Importera data fr. verktyg'!U28 -> 0 | W86: mnkr/år | AA86: ='0.5. Importera data fr. verktyg'!W28 -> 0 | AL86: Ej bedömt | BM86: Samkalk 3.4.6
G87: Ej angett | S87: Ej angett | W87: Ej angett | AA87: Ej beräknat | AL87: Ej bedömt | BM87: Samkalk 3.4.6
G88: Ej angett | S88: Ej angett | W88: Ej angett | AA88: Ej beräknat | AL88: Ej bedömt | BM88: Samkalk 3.4.6
G89: Ej angett | S89: Ej angett | W89: Ej angett | AA89: Ej beräknat | AL89: Ej bedömt | BM89: Samkalk 3.4.6
G90: Ej angett | S90: Ej angett | W90: Ej angett | AA90: Ej beräknat | AL90: Ej bedömt | BM90: Samkalk 3.4.6
D91: GODSTRANSPORTER | G91: Restid pb yrkestrafik | S91: ='0.5. Importera data fr. verktyg'!AA10*1000 -> -19.38 | W91: kptim/år | AA91: ='0.5. Importera data fr. verktyg'!AC10 -> 169.29739 | AF91: =IF(ISNUMBER(SUM(AA91:AE112)),SUM(AA91:AE112),0) -> 604.46276 | AL91: Ej bedömt | AU91: Ej bedömt | BA91: Ej angett | BM91: Samkalk 3.4.6
G92: Restid lastbil (utan släp) | S92: ='0.5. Importera data fr. verktyg'!AA11*1000 -> -24.83 | W92: kptim/år | AA92: ='0.5. Importera data fr. verktyg'!AC11 -> 216.83833 | AL92: Ej bedömt | BM92: Samkalk 3.4.6
G93: Restid lastbil (släp) | S93: ='0.5. Importera data fr. verktyg'!AA12*1000 -> -14.48 | W93: kptim/år | AA93: ='0.5. Importera data fr. verktyg'!AC12 -> 126.41621 | AL93: Ej bedömt | BM93: Samkalk 3.4.6
G94: Reskostnad pb yrkestrafik | S94: ='0.5. Importera data fr. verktyg'!AA13 -> -0.1489 | W94: mnkr/år | AA94: ='0.5. Importera data fr. verktyg'!AC13 -> 3.25053 | AL94: Ej bedömt | BM94: Samkalk 3.4.6
G95: Reskostnad lastbil (utan släp) | S95: ='0.5. Importera data fr. verktyg'!AA14 -> -3.09087 | W95: mnkr/år | AA95: ='0.5. Importera data fr. verktyg'!AC14 -> 67.47348 | AL95: Ej bedömt | BM95: Samkalk 3.4.6
G96: Reskostnad lastbil (släp) | S96: ='0.5. Importera data fr. verktyg'!AA15 -> -0.32851 | W96: mnkr/år | AA96: ='0.5. Importera data fr. verktyg'!AC15 -> 7.17128 | AL96: Ej bedömt | BM96: Samkalk 3.4.6
G97: Transporttid gods pb yrkestrafik | S97: ='0.5. Importera data fr. verktyg'!AA16 -> -0.04846 | W97: mnkr/år | AA97: ='0.5. Importera data fr. verktyg'!AC16 -> 1.05794 | AL97: Ej bedömt | BM97: Samkalk 3.4.6
G98: Transporttid gods lastbil (u. släp) | S98: ='0.5. Importera data fr. verktyg'!AA17 -> -0.14483 | W98: mnkr/år | AA98: ='0.5. Importera data fr. verktyg'!AC17 -> 3.16163 | AL98: Ej bedömt | BM98: Samkalk 3.4.6
G99: Transporttid gods lastbil (släp) | S99: ='0.5. Importera data fr. verktyg'!AA18 -> -0.44874 | W99: mnkr/år | AA99: ='0.5. Importera data fr. verktyg'!AC18 -> 9.79591 | AL99: Ej bedömt | BM99: Samkalk 3.4.6
G100: Vägavgifter/vägskatt pb yrkestrafik | S100: ='0.5. Importera data fr. verktyg'!AA19 -> 0 | W100: mnkr/år | AA100: ='0.5. Importera data fr. verktyg'!AC19 -> 0 | AL100: Ej bedömt | BM100: Samkalk 3.4.6
G101: Vägavgifter/vägskatt lastbil (u. släp) | S101: ='0.5. Importera data fr. verktyg'!AA20 -> 0 | W101: mnkr/år | AA101: ='0.5. Importera data fr. verktyg'!AC20 -> 0 | AL101: Ej bedömt | BM101: Samkalk 3.4.6
G102: Vägavgifter/vägskatt lastbil (släp) | S102: ='0.5. Importera data fr. verktyg'!AA21 -> 0 | W102: mnkr/år | AA102: ='0.5. Importera data fr. verktyg'!AC21 -> 6e-05 | AL102: Ej bedömt | BM102: Samkalk 3.4.6
G103: Ej angett | S103: Ej angett | W103: Ej angett | AA103: Ej beräknat | AL103: Ej bedömt | BM103: Samkalk 3.4.6
G104: Ej angett | S104: Ej angett | W104: Ej angett | AA104: Ej beräknat | AL104: Ej bedömt | BM104: Samkalk 3.4.6
G105: Ej angett | S105: Ej angett | W105: Ej angett | AA105: Ej beräknat | AL105: Ej bedömt | BM105: Samkalk 3.4.6
G106: Ej angett | S106: Ej angett | W106: Ej angett | AA106: Ej beräknat | AL106: Ej bedömt | BM106: Samkalk 3.4.6
G107: Ej angett | S107: Ej angett | W107: Ej angett | AA107: Ej beräknat | AL107: Ej bedömt | BM107: Samkalk 3.4.6
G108: Ej angett | S108: Ej angett | W108: Ej angett | AA108: Ej beräknat | AL108: Ej bedömt | BM108: Samkalk 3.4.6
G109: Ej angett | S109: Ej angett | W109: Ej angett | AA109: Ej beräknat | AL109: Ej bedömt | BM109: Samkalk 3.4.6
G110: Ej angett | S110: Ej angett | W110: Ej angett | AA110: Ej beräknat | AL110: Ej bedömt | BM110: Samkalk 3.4.6
G111: Ej angett | S111: Ej angett | W111: Ej angett | AA111: Ej beräknat | AL111: Ej bedömt | BM111: Samkalk 3.4.6
G112: Ej angett | S112: Ej angett | W112: Ej angett | AA112: Ej beräknat | AL112: Ej bedömt | BM112: Samkalk 3.4.6
D113: PERSONTRANSPORTFÖRETAG | G113: Biljettintäkter | S113: ='0.5. Importera data fr. verktyg'!AG10 -> -0.29989 | W113: mnkr/år | AA113: ='0.5. Importera data fr. verktyg'!AI10 -> -6.43773 | AF113: =IF(ISNUMBER(SUM(AA113:AE132)),SUM(AA113:AE132),0) -> -4.98417 | AL113: Ej bedömt | AU113: Ej bedömt | BA113: Ej angett | BM113: Samkalk 3.4.6
G114: Fordonskostnader för kollektivtrafik | S114: ='0.5. Importera data fr. verktyg'!AG11 -> -0.04199 | W114: mnkr/år | AA114: ='0.5. Importera data fr. verktyg'!AI11 -> 1.07868 | AL114: Ej bedömt | BM114: Samkalk 3.4.6
G115: Moms på biljettintäkter | S115: ='0.5. Importera data fr. verktyg'!AG12 -> -0.01698 | W115: mnkr/år | AA115: ='0.5. Importera data fr. verktyg'!AI12 -> 0.3644 | AL115: Ej bedömt | BM115: Samkalk 3.4.6
G116: Banavgifter | S116: ='0.5. Importera data fr. verktyg'!AG13 -> -0.00049 | W116: mnkr/år | AA116: ='0.5. Importera data fr. verktyg'!AI13 -> 0.01048 | AL116: Ej bedömt | BM116: Samkalk 3.4.6
G117: Ej angett | S117: Ej angett | W117: Ej angett | AA117: Ej beräknat | AL117: Ej bedömt | BM117: Samkalk 3.4.6
G118: Ej angett | S118: Ej angett | W118: Ej angett | AA118: Ej beräknat | AL118: Ej bedömt | BM118: Samkalk 3.4.6
G119: Ej angett | S119: Ej angett | W119: Ej angett | AA119: Ej beräknat | AL119: Ej bedömt | BM119: Samkalk 3.4.6
G120: Ej angett | S120: Ej angett | W120: Ej angett | AA120: Ej beräknat | AL120: Ej bedömt | BM120: Samkalk 3.4.6
G121: Ej angett | S121: Ej angett | W121: Ej angett | AA121: Ej beräknat | AL121: Ej bedömt | BM121: Samkalk 3.4.6
G122: Ej angett | S122: Ej angett | W122: Ej angett | AA122: Ej beräknat | AL122: Ej bedömt | BM122: Samkalk 3.4.6
G123: Ej angett | S123: Ej angett | W123: Ej angett | AA123: Ej beräknat | AL123: Ej bedömt | BM123: Samkalk 3.4.6
G124: Ej angett | S124: Ej angett | W124: Ej angett | AA124: Ej beräknat | AL124: Ej bedömt | BM124: Samkalk 3.4.6
G125: Ej angett | S125: Ej angett | W125: Ej angett | AA125: Ej beräknat | AL125: Ej bedömt | BM125: Samkalk 3.4.6
G126: Ej angett | S126: Ej angett | W126: Ej angett | AA126: Ej beräknat | AL126: Ej bedömt | BM126: Samkalk 3.4.6
G127: Ej angett | S127: Ej angett | W127: Ej angett | AA127: Ej beräknat | AL127: Ej bedömt | BM127: Samkalk 3.4.6
G128: Ej angett | S128: Ej angett | W128: Ej angett | AA128: Ej beräknat | AL128: Ej bedömt | BM128: Samkalk 3.4.6
G129: Ej angett | S129: Ej angett | W129: Ej angett | AA129: Ej beräknat | AL129: Ej bedömt | BM129: Samkalk 3.4.6
G130: Ej angett | S130: Ej angett | W130: Ej angett | AA130: Ej beräknat | AL130: Ej bedömt | BM130: Samkalk 3.4.6
G131: Ej angett | S131: Ej angett | W131: Ej angett | AA131: Ej beräknat | AL131: Ej bedömt | BM131: Samkalk 3.4.6
G132: Ej angett | S132: Ej angett | W132: Ej angett | AA132: Ej beräknat | AL132: Ej bedömt | BM132: Samkalk 3.4.6
A133: EXTERNA EFFEKTER | D133: TRAFIKSÄKERHET (TS) | G133: Trafiksäkerhet totalt | S133: Ej angett | W133: Ej angett | AA133: =-'0.5. Importera data fr. verktyg'!AO13 -> -55.54578711 | AF133: =IF(ISNUMBER(SUM(AA133:AE149)),SUM(AA133:AE149),0) -> -55.54578711 | AL133: Ej bedömt | AU133: Ej bedömt | BA133: Ej angett | BM133: =$AJ$19 -> Samkalk 3.4.6
G134: Döda | W134: ='[7]0.5. Importera data fr. verktyg'!W20 -> D/år | AA134: Ej beräknat | AL134: Ej bedömt | BM134: Samkalk 3.4.6
G135: Mycket allvarligt skadade | W135: ='[7]0.5. Importera data fr. verktyg'!W21 -> MAS/år | AA135: Ej beräknat | AL135: Ej bedömt | BM135: Samkalk 3.4.6
G136: Allvarligt skadade exkl MAS | W136: ='[7]0.5. Importera data fr. verktyg'!W22 -> AS/år | AA136: Ej beräknat | AL136: Ej bedömt | BM136: Samkalk 3.4.6
G137: Ej allvarligt skadade | W137: ='[7]0.5. Importera data fr. verktyg'!W23 -> ES/år | AA137: Ej beräknat | AL137: Ej bedömt | BM137: Samkalk 3.4.6
G138: Ej angett | S138: Ej angett | W138: Ej angett | AA138: Ej beräknat | AL138: Ej bedömt | BM138: Samkalk 3.4.6
G139: Ej angett | S139: Ej angett | W139: Ej angett | AA139: Ej beräknat | AL139: Ej bedömt | BM139: Samkalk 3.4.6
G140: Ej angett | S140: Ej angett | W140: Ej angett | AA140: Ej beräknat | AL140: Ej bedömt | BM140: Samkalk 3.4.6
G141: Ej angett | S141: Ej angett | W141: Ej angett | AA141: Ej beräknat | AL141: Ej bedömt | BM141: Samkalk 3.4.6
G142: Ej angett | S142: Ej angett | W142: Ej angett | AA142: Ej beräknat | AL142: Ej bedömt | BM142: Samkalk 3.4.6
G143: Ej angett | S143: Ej angett | W143: Ej angett | AA143: Ej beräknat | AL143: Ej bedömt | BM143: Samkalk 3.4.6
G144: Ej angett | S144: Ej angett | W144: Ej angett | AA144: Ej beräknat | AL144: Ej bedömt | BM144: Samkalk 3.4.6
G145: Ej angett | S145: Ej angett | W145: Ej angett | AA145: Ej beräknat | AL145: Ej bedömt | BM145: Samkalk 3.4.6
G146: Ej angett | S146: Ej angett | W146: Ej angett | AA146: Ej beräknat | AL146: Ej bedömt | BM146: Samkalk 3.4.6
G147: Ej angett | S147: Ej angett | W147: Ej angett | AA147: Ej beräknat | AL147: Ej bedömt | BM147: Samkalk 3.4.6
G148: Ej angett | S148: Ej angett | W148: Ej angett | AA148: Ej beräknat | AL148: Ej bedömt | BM148: Samkalk 3.4.6
G149: Ej angett | S149: Ej angett | W149: Ej angett | AA149: Ej beräknat | AL149: Ej bedömt | BM149: Samkalk 3.4.6
D150: KLIMAT | G150: CO2-ekvivalenter, Avser koldioxid | S150: ='0.5. Importera data fr. verktyg'!AM12 -> -0.09448 | W150: kton/år | AA150: ='0.5. Importera data fr. verktyg'!AO12 -> 20.63522 | AF150: =IF(ISNUMBER(SUM(AA150:AE172)),SUM(AA150:AE172),0) -> 20.63522 | AL150: Ej bedömt | AU150: Ej bedömt | BA150: Ej angett | BM150: Samkalk 3.4.6
G151: Ej angett | S151: Ej angett | W151: Ej angett | AA151: Ej beräknat | AL151: Ej bedömt | BM151: Samkalk 3.4.6
G152: Ej angett | S152: Ej angett | W152: Ej angett | AA152: Ej beräknat | AL152: Ej bedömt | BM152: Samkalk 3.4.6
G153: Ej angett | S153: Ej angett | W153: Ej angett | AA153: Ej beräknat | AL153: Ej bedömt | BM153: Samkalk 3.4.6
G154: Ej angett | S154: Ej angett | W154: Ej angett | AA154: Ej beräknat | AL154: Ej bedömt | BM154: Samkalk 3.4.6
G155: Ej angett | S155: Ej angett | W155: Ej angett | AA155: Ej beräknat | AL155: Ej bedömt | BM155: Samkalk 3.4.6
G156: Ej angett | S156: Ej angett | W156: Ej angett | AA156: Ej beräknat | AL156: Ej bedömt | BM156: Samkalk 3.4.6
G157: Ej angett | S157: Ej angett | W157: Ej angett | AA157: Ej beräknat | AL157: Ej bedömt | BM157: Samkalk 3.4.6
G158: Ej angett | S158: Ej angett | W158: Ej angett | AA158: Ej beräknat | AL158: Ej bedömt | BM158: Samkalk 3.4.6
G159: Ej angett | S159: Ej angett | W159: Ej angett | AA159: Ej beräknat | AL159: Ej bedömt | BM159: Samkalk 3.4.6
G160: Ej angett | S160: Ej angett | W160: Ej angett | AA160: Ej beräknat | AL160: Ej bedömt | BM160: Samkalk 3.4.6
G161: Ej angett | S161: Ej angett | W161: Ej angett | AA161: Ej beräknat | AL161: Ej bedömt | BM161: Samkalk 3.4.6
G162: Ej angett | S162: Ej angett | W162: Ej angett | AA162: Ej beräknat | AL162: Ej bedömt | BM162: Samkalk 3.4.6
G163: Ej angett | S163: Ej angett | W163: Ej angett | AA163: Ej beräknat | AL163: Ej bedömt | BM163: Samkalk 3.4.6
G164: Ej angett | S164: Ej angett | W164: Ej angett | AA164: Ej beräknat | AL164: Ej bedömt | BM164: Samkalk 3.4.6
G165: Ej angett | S165: Ej angett | W165: Ej angett | AA165: Ej beräknat | AL165: Ej bedömt | BM165: Samkalk 3.4.6
G166: Ej angett | S166: Ej angett | W166: Ej angett | AA166: Ej beräknat | AL166: Ej bedömt | BM166: Samkalk 3.4.6
G167: Ej angett | S167: Ej angett | W167: Ej angett | AA167: Ej beräknat | AL167: Ej bedömt | BM167: Samkalk 3.4.6
G168: Ej angett | S168: Ej angett | W168: Ej angett | AA168: Ej beräknat | AL168: Ej bedömt | BM168: Samkalk 3.4.6
G169: Ej angett | S169: Ej angett | W169: Ej angett | AA169: Ej beräknat | AL169: Ej bedömt | BM169: Samkalk 3.4.6
G170: Ej angett | S170: Ej angett | W170: Ej angett | AA170: Ej beräknat | AL170: Ej bedömt | BM170: Samkalk 3.4.6
G171: Ej angett | S171: Ej angett | W171: Ej angett | AA171: Ej beräknat | AL171: Ej bedömt | BM171: Samkalk 3.4.6
G172: Ej angett | S172: Ej angett | W172: Ej angett | AA172: Ej beräknat | AL172: Ej bedömt | BM172: Samkalk 3.4.6
D173: HÄLSA (exkl trafiksäkerhet) | G173: Luft Avser NOX, avgaspartiklar och slitagepartiklar | S173: Ej angett | W173: Ej angett | AA173: ='0.5. Importera data fr. verktyg'!AO14+'0.5. Importera data fr. verktyg'!AO15+'0.5. Importera data fr. verktyg'!AO16 -> 87.8727 | AF173: =IF(ISNUMBER(SUM(AA173:AE188)),SUM(AA173:AE188),0) -> 87.8727 | AL173: Ej bedömt | AU173: Ej bedömt | BA173: Ej angett | BM173: Samkalk 3.4.6
G174: Luft - NOX Kväveoxider | S174: ='0.5. Importera data fr. verktyg'!AM14 -> -0.30299 | W174: ton/år | AA174: Ej beräknat | AL174: Ej bedömt | BM174: Samkalk 3.4.6
G175: Luft -Avgaspartiklar | S175: ='0.5. Importera data fr. verktyg'!AM15 -> -0.00389 | W175: ton/år | AA175: Ej beräknat | AL175: Ej bedömt | BM175: Samkalk 3.4.6
G176: Luft - Slitagepartiklar | S176: ='0.5. Importera data fr. verktyg'!AM16 -> -0.08269 | W176: ton/år | AA176: Ej beräknat | AL176: Ej bedömt | BM176: Samkalk 3.4.6
G177: Ej angett | S177: Ej angett | W177: Ej angett | AA177: Ej beräknat | AL177: Ej bedömt | BM177: Samkalk 3.4.6
G178: Ej angett | S178: Ej angett | W178: Ej angett | AA178: Ej beräknat | AL178: Ej bedömt | BM178: Samkalk 3.4.6
G179: Ej angett | S179: Ej angett | W179: Ej angett | AA179: Ej beräknat | AL179: Ej bedömt | BM179: Samkalk 3.4.6
G180: Ej angett | S180: Ej angett | W180: Ej angett | AA180: Ej beräknat | AL180: Ej bedömt | BM180: Samkalk 3.4.6
G181: Ej angett | S181: Ej angett | W181: Ej angett | AA181: Ej beräknat | AL181: Ej bedömt | BM181: Samkalk 3.4.6
G182: Ej angett | S182: Ej angett | W182: Ej angett | AA182: Ej beräknat | AL182: Ej bedömt | BM182: Samkalk 3.4.6
G183: Ej angett | S183: Ej angett | W183: Ej angett | AA183: Ej beräknat | AL183: Ej bedömt | BM183: Samkalk 3.4.6
G184: Ej angett | S184: Ej angett | W184: Ej angett | AA184: Ej beräknat | AL184: Ej bedömt | BM184: Samkalk 3.4.6
G185: Ej angett | S185: Ej angett | W185: Ej angett | AA185: Ej beräknat | AL185: Ej bedömt | BM185: Samkalk 3.4.6
G186: Ej angett | S186: Ej angett | W186: Ej angett | AA186: Ej beräknat | AL186: Ej bedömt | BM186: Samkalk 3.4.6
G187: Ej angett | S187: Ej angett | W187: Ej angett | AA187: Ej beräknat | AL187: Ej bedömt | BM187: Samkalk 3.4.6
G188: Ej angett | S188: Ej angett | W188: Ej angett | AA188: Ej beräknat | AL188: Ej bedömt | BM188: Samkalk 3.4.6
D189: LANDSKAP | G189: Ej angett | S189: Ej angett | W189: Ej angett | AA189: Ej beräknat | AF189: =IF(ISNUMBER(SUM(AA189:AE203)),SUM(AA189:AE203),0) -> 0 | AL189: Ej bedömt | AU189: Ej bedömt | BA189: Ej angett
G190: Ej angett | S190: Ej angett | W190: Ej angett | AA190: Ej beräknat | AL190: Ej bedömt
G191: Ej angett | S191: Ej angett | W191: Ej angett | AA191: Ej beräknat | AL191: Ej bedömt
G192: Ej angett | S192: Ej angett | W192: Ej angett | AA192: Ej beräknat | AL192: Ej bedömt
G193: Ej angett | S193: Ej angett | W193: Ej angett | AA193: Ej beräknat | AL193: Ej bedömt
G194: Ej angett | S194: Ej angett | W194: Ej angett | AA194: Ej beräknat | AL194: Ej bedömt
G195: Ej angett | S195: Ej angett | W195: Ej angett | AA195: Ej beräknat | AL195: Ej bedömt
G196: Ej angett | S196: Ej angett | W196: Ej angett | AA196: Ej beräknat | AL196: Ej bedömt
G197: Ej angett | S197: Ej angett | W197: Ej angett | AA197: Ej beräknat | AL197: Ej bedömt
G198: Ej angett | S198: Ej angett | W198: Ej angett | AA198: Ej beräknat | AL198: Ej bedömt
G199: Ej angett | S199: Ej angett | W199: Ej angett | AA199: Ej beräknat | AL199: Ej bedömt
G200: Ej angett | S200: Ej angett | W200: Ej angett | AA200: Ej beräknat | AL200: Ej bedömt
G201: Ej angett | S201: Ej angett | W201: Ej angett | AA201: Ej beräknat | AL201: Ej bedömt
G202: Ej angett | S202: Ej angett | W202: Ej angett | AA202: Ej beräknat | AL202: Ej bedömt
G203: Ej angett | S203: Ej angett | W203: Ej angett | AA203: Ej beräknat | AL203: Ej bedömt
D204: ÖVRIGA EXTERNA EFFEKTER | G204: Marginellt slitage | S204: ='0.5. Importera data fr. verktyg'!AM20 -> -0.31492 | W204: mnkr/år | AA204: ='0.5. Importera data fr. verktyg'!AO20 -> 6.87438 | AF204: =IF(ISNUMBER(SUM(AA204:AE220)),SUM(AA204:AE220),0) -> 6.87438 | AL204: Ej bedömt | AU204: Ej bedömt | BA204: Ej angett | BM204: =$AJ$19 -> Samkalk 3.4.6
G205: Ej angett | S205: Ej angett | W205: Ej angett | AA205: Ej beräknat | AL205: Ej bedömt | BM205: Samkalk 3.4.6
... 62 more rows
